[Event "*** SCC Grand Prix: Titled Tuesday Blitz"]
[Site "Chess.com"]
[Date "2020.06.02"]
[Round "9"]
[White "Omk124"]
[Black "topotun"]
[Result "1-0"]
[WhiteElo "2449"]
[BlackElo "2585"]
[TimeControl "180+1"]
[EndTime "11:49:44 PDT"]
[Termination "Omk124 won on time"]

1. e4 {[%clk 0:03:00.9]} 1... d6 {[%clk 0:03:00]} 2. d4 {[%clk 0:03:00.7]} 2...
c6 {[%clk 0:02:59.9]} 3. Nf3 {[%clk 0:02:54.2]} 3... h6 {[%clk 0:02:59.9]} 4.
Bd3 {[%clk 0:02:53.8]} 4... g5 {[%clk 0:02:59.9]} 5. h3 {[%clk 0:02:53.6]} 5...
Bg7 {[%clk 0:02:59.7]} 6. c3 {[%clk 0:02:52.8]} 6... Nd7 {[%clk 0:02:59.9]} 7.
Be3 {[%clk 0:02:52.4]} 7... Nf8 {[%clk 0:02:59.9]} 8. Nbd2 {[%clk 0:02:52.3]}
8... Ng6 {[%clk 0:02:59.9]} 9. Qb3 {[%clk 0:02:48.8]} 9... Qc7 {[%clk
0:02:55.8]} 10. O-O {[%clk 0:02:44.2]} 10... Nf6 {[%clk 0:02:52.2]} 11. Rfe1
{[%clk 0:02:39]} 11... g4 {[%clk 0:02:51]} 12. hxg4 {[%clk 0:02:37.6]} 12...
Nxg4 {[%clk 0:02:51.9]} 13. Bc4 {[%clk 0:02:33.7]} 13... O-O {[%clk 0:02:40]}
14. a4 {[%clk 0:02:29.1]} 14... Nxe3 {[%clk 0:02:39.2]} 15. Rxe3 {[%clk
0:02:28.2]} 15... e6 {[%clk 0:02:32.2]} 16. Rae1 {[%clk 0:02:24.5]} 16... e5
{[%clk 0:02:27.5]} 17. Nf1 {[%clk 0:02:18.2]} 17... Nf4 {[%clk 0:02:22.9]} 18.
Ng3 {[%clk 0:02:18]} 18... Kh7 {[%clk 0:02:17.2]} 19. dxe5 {[%clk 0:02:07.7]}
19... dxe5 {[%clk 0:02:16.4]} 20. Nh4 {[%clk 0:02:08.2]} 20... Be6 {[%clk
0:02:03.7]} 21. Nhf5 {[%clk 0:02:05.2]} 21... Rg8 {[%clk 0:01:57.4]} 22. Rf3
{[%clk 0:01:46.6]} 22... Bf8 {[%clk 0:01:53.7]} 23. Rd1 {[%clk 0:01:10.3]} 23...
Bc5 {[%clk 0:01:48]} 24. Bxe6 {[%clk 0:01:05.3]} 24... fxe6 {[%clk 0:01:45.5]}
25. Rxf4 {[%clk 0:01:05.5]} 25... exf5 {[%clk 0:00:38.6]} 26. Rxf5 {[%clk
0:01:04.7]} 26... Rg7 {[%clk 0:00:30.2]} 27. Qe6 {[%clk 0:00:59.1]} 27... Qe7
{[%clk 0:00:17.5]} 28. Qxe7 {[%clk 0:00:51.8]} 28... Rxe7 {[%clk 0:00:18.4]} 29.
b4 {[%clk 0:00:52]} 29... Bb6 {[%clk 0:00:18.9]} 30. Nh5 {[%clk 0:00:48.2]}
30... a5 {[%clk 0:00:18.2]} 31. Nf6+ {[%clk 0:00:43.9]} 31... Kg6 {[%clk
0:00:18.5]} 32. b5 {[%clk 0:00:39.6]} 32... cxb5 {[%clk 0:00:18.1]} 33. axb5
{[%clk 0:00:40.5]} 33... Bc5 {[%clk 0:00:17.4]} 34. Ng4 {[%clk 0:00:40.1]} 34...
a4 {[%clk 0:00:13.7]} 35. Nxe5+ {[%clk 0:00:39.9]} 35... Kg7 {[%clk 0:00:14.1]}
36. Nc4 {[%clk 0:00:37.4]} 36... b6 {[%clk 0:00:14]} 37. e5 {[%clk 0:00:27.6]}
37... a3 {[%clk 0:00:14]} 38. Ra1 {[%clk 0:00:20.7]} 38... Ra4 {[%clk
0:00:13.9]} 39. Rf4 {[%clk 0:00:20.3]} 39... Rxe5 {[%clk 0:00:12.1]} 40. Rg4+
{[%clk 0:00:20.1]} 40... Rg5 {[%clk 0:00:11.1]} 41. Re4 {[%clk 0:00:19.9]} 41...
Rd5 {[%clk 0:00:09.2]} 42. Kh2 {[%clk 0:00:18.6]} 42... Rd3 {[%clk 0:00:08.8]}
43. f3 {[%clk 0:00:17.9]} 43... Rxc3 {[%clk 0:00:08.8]} 44. Nd2 {[%clk 0:00:18]}
44... Rxe4 {[%clk 0:00:07]} 45. Nxe4 {[%clk 0:00:18.9]} 45... Rb3 {[%clk
0:00:06.9]} 46. Kg3 {[%clk 0:00:15]} 46... Bd4 {[%clk 0:00:07.1]} 47. Ra2 {[%clk
0:00:14.2]} 47... Kf7 {[%clk 0:00:06.7]} 48. Kf4 {[%clk 0:00:13.3]} 48... Ke6
{[%clk 0:00:06.2]} 49. Nd2 {[%clk 0:00:13.3]} 49... Rc3 {[%clk 0:00:04]} 50. Ke4
{[%clk 0:00:11.9]} 50... Bc5 {[%clk 0:00:04.2]} 51. Nb1 {[%clk 0:00:10.9]} 51...
Re3+ {[%clk 0:00:03.3]} 52. Kf4 {[%clk 0:00:10.8]} 52... Rb3 {[%clk 0:00:04.2]}
53. Nd2 {[%clk 0:00:11]} 53... Rxb5 {[%clk 0:00:03.8]} 54. Ne4 {[%clk 0:00:10]}
54... Ra5 {[%clk 0:00:03]} 55. Nc3 {[%clk 0:00:09.4]} 55... Bb4 {[%clk
0:00:02.1]} 56. Ne2 {[%clk 0:00:08.8]} 56... Kd5 {[%clk 0:00:02.5]} 57. Ke3
{[%clk 0:00:08.8]} 57... Kc4 {[%clk 0:00:02.9]} 58. Nc1 {[%clk 0:00:08.9]} 58...
Bc3 {[%clk 0:00:02.8]} 59. Rc2 {[%clk 0:00:08.3]} 59... a2 {[%clk 0:00:02.3]}
60. Nxa2 {[%clk 0:00:07.8]} 60... Kb3 {[%clk 0:00:03]} 61. Rxc3+ {[%clk
0:00:08]} 61... Kxa2 {[%clk 0:00:03.9]} 62. Rc6 {[%clk 0:00:08.4]} 62... Re5+
{[%clk 0:00:04.3]} 63. Kf4 {[%clk 0:00:08.4]} 63... Rb5 {[%clk 0:00:04.7]} 64.
Rxh6 {[%clk 0:00:08.1]} 64... Rb2 {[%clk 0:00:05.1]} 65. g4 {[%clk 0:00:08.2]}
65... b5 {[%clk 0:00:05.5]} 66. Rb6 {[%clk 0:00:08.7]} 66... b4 {[%clk
0:00:05.9]} 67. g5 {[%clk 0:00:09.4]} 67... b3 {[%clk 0:00:06.3]} 68. g6 {[%clk
0:00:10.1]} 68... Rg2 {[%clk 0:00:06.8]} 69. Kf5 {[%clk 0:00:10.4]} 69... b2
{[%clk 0:00:07]} 70. Ra6+ {[%clk 0:00:10.3]} 70... Kb3 {[%clk 0:00:06.8]} 71. f4
{[%clk 0:00:09.3]} 71... Kc2 {[%clk 0:00:06.6]} 72. Rb6 {[%clk 0:00:10.2]} 72...
Rg3 {[%clk 0:00:06.9]} 73. Kf6 {[%clk 0:00:09.2]} 73... Rb3 {[%clk 0:00:06]} 74.
Rc6+ {[%clk 0:00:10.1]} 74... Rc3 {[%clk 0:00:06]} 75. Rb6 {[%clk 0:00:09.9]}
75... Rb3 {[%clk 0:00:06.4]} 76. Rxb3 {[%clk 0:00:10.4]} 76... Kxb3 {[%clk
0:00:06.7]} 77. g7 {[%clk 0:00:11.3]} 77... b1=Q {[%clk 0:00:07.3]} 78. g8=Q+
{[%clk 0:00:12.2]} 78... Kc3 {[%clk 0:00:06.2]} 79. Qc8+ {[%clk 0:00:11.7]}
79... Kd4 {[%clk 0:00:06.3]} 80. Qd7+ {[%clk 0:00:11.6]} 80... Ke3 {[%clk
0:00:05.8]} 81. f5 {[%clk 0:00:09.8]} 81... Kf4 {[%clk 0:00:03.6]} 82. Qd4+
{[%clk 0:00:09.3]} 82... Kf3 {[%clk 0:00:03.7]} 83. Kg6 {[%clk 0:00:08.8]} 83...
Qc2 {[%clk 0:00:02.8]} 84. Kg5 {[%clk 0:00:08.5]} 84... Qc1+ {[%clk 0:00:02.7]}
85. Kg6 {[%clk 0:00:07.3]} 85... Qc2 {[%clk 0:00:02.9]} 86. Kf6 {[%clk
0:00:07.2]} 86... Qc6+ {[%clk 0:00:02.2]} 87. Ke5 {[%clk 0:00:06.6]} 87... Qb5+
{[%clk 0:00:01.9]} 88. Qd5+ {[%clk 0:00:06.7]} 88... Qxd5+ {[%clk 0:00:02.4]}
89. Kxd5 {[%clk 0:00:07.6]} 1-0

[Event "*** SCC Grand Prix: Titled Tuesday Blitz"]
[Site "Chess.com"]
[Date "2020.06.02"]
[Round "9"]
[White "Grieve72"]
[Black "Zenzo"]
[Result "1/2-1/2"]
[WhiteElo "2374"]
[BlackElo "2548"]
[TimeControl "180+1"]
[EndTime "11:49:48 PDT"]
[Termination "Game drawn by repetition"]

1. e4 {[%clk 0:03:00.9]} 1... e5 {[%clk 0:03:00]} 2. Nf3 {[%clk 0:03:01]} 2...
Nc6 {[%clk 0:03:00.3]} 3. Bc4 {[%clk 0:03:01.4]} 3... Bc5 {[%clk 0:02:59.8]} 4.
O-O {[%clk 0:03:01.6]} 4... Nf6 {[%clk 0:02:59.8]} 5. d3 {[%clk 0:03:01.7]} 5...
d6 {[%clk 0:02:59.3]} 6. a4 {[%clk 0:03:01.5]} 6... a6 {[%clk 0:02:59.4]} 7. c3
{[%clk 0:03:01.2]} 7... Ba7 {[%clk 0:02:59.3]} 8. Bg5 {[%clk 0:02:55.6]} 8... h6
{[%clk 0:02:59.2]} 9. Bh4 {[%clk 0:02:55.9]} 9... g5 {[%clk 0:02:59.1]} 10. Bg3
{[%clk 0:02:56.5]} 10... g4 {[%clk 0:02:56.2]} 11. Nh4 {[%clk 0:02:51.7]} 11...
Nh5 {[%clk 0:02:55.2]} 12. Nd2 {[%clk 0:02:41.1]} 12... Nxg3 {[%clk 0:02:50.2]}
13. hxg3 {[%clk 0:02:40.6]} 13... Qg5 {[%clk 0:02:40.5]} 14. Re1 {[%clk
0:02:27.9]} 14... Ne7 {[%clk 0:02:32.7]} 15. Nf1 {[%clk 0:02:20.8]} 15... Ng6
{[%clk 0:02:27.6]} 16. Nxg6 {[%clk 0:02:20.4]} 16... fxg6 {[%clk 0:02:27]} 17.
d4 {[%clk 0:02:16.2]} 17... h5 {[%clk 0:02:22.1]} 18. dxe5 {[%clk 0:01:35.9]}
18... dxe5 {[%clk 0:02:09.2]} 19. Qd5 {[%clk 0:01:32.8]} 19... Qf6 {[%clk
0:02:05.3]} 20. Ne3 {[%clk 0:01:25.1]} 20... c6 {[%clk 0:02:03.3]} 21. Qd2
{[%clk 0:01:23.2]} 21... h4 {[%clk 0:01:57.8]} 22. Rad1 {[%clk 0:01:02.8]} 22...
Rh7 {[%clk 0:01:16]} 23. Qd6 {[%clk 0:00:54.5]} 23... Qxd6 {[%clk 0:01:05.7]}
24. Rxd6 {[%clk 0:00:53.9]} 24... hxg3 {[%clk 0:01:01.6]} 25. fxg3 {[%clk
0:00:48.1]} 25... Bd7 {[%clk 0:00:57.1]} 26. Kf1 {[%clk 0:00:17.1]} 26... Rh1+
{[%clk 0:00:51.9]} 27. Ke2 {[%clk 0:00:15.9]} 27... Rxe1+ {[%clk 0:00:52.4]} 28.
Kxe1 {[%clk 0:00:16.1]} 28... Bxe3 {[%clk 0:00:53]} 29. Rxg6 {[%clk 0:00:15.8]}
29... Ke7 {[%clk 0:00:41.7]} 30. Ke2 {[%clk 0:00:13.3]} 30... Bc1 {[%clk
0:00:35]} 31. b4 {[%clk 0:00:12.3]} 31... Rf8 {[%clk 0:00:31.1]} 32. Rg7+ {[%clk
0:00:11.6]} 32... Kd6 {[%clk 0:00:30]} 33. Rg6+ {[%clk 0:00:12.1]} 33... Kc7
{[%clk 0:00:29.9]} 34. Rg7 {[%clk 0:00:12.7]} 34... Rf6 {[%clk 0:00:25.5]} 35.
Bf7 {[%clk 0:00:10.2]} 35... Bh6 {[%clk 0:00:22.4]} 36. Rh7 {[%clk 0:00:09.7]}
36... Kd6 {[%clk 0:00:22.3]} 37. Bh5 {[%clk 0:00:07.4]} 37... b5 {[%clk
0:00:19.9]} 38. a5 {[%clk 0:00:06.8]} 38... Bf8 {[%clk 0:00:17.6]} 39. Rh8
{[%clk 0:00:05.9]} 39... Kc7 {[%clk 0:00:17.2]} 40. Rh7 {[%clk 0:00:06.1]} 40...
Kd6 {[%clk 0:00:16.7]} 41. Rh8 {[%clk 0:00:05.7]} 41... c5 {[%clk 0:00:17.1]}
42. bxc5+ {[%clk 0:00:04]} 42... Kxc5 {[%clk 0:00:18]} 43. Rh7 {[%clk
0:00:04.8]} 43... Kd6 {[%clk 0:00:17.9]} 44. Bf7 {[%clk 0:00:03.9]} 44... Be7
{[%clk 0:00:16.5]} 45. Bd5 {[%clk 0:00:03.8]} 45... Bd8 {[%clk 0:00:14.1]} 46.
Rh8 {[%clk 0:00:03.6]} 46... Bxa5 {[%clk 0:00:13]} 47. Ra8 {[%clk 0:00:04.2]}
47... Bxc3 {[%clk 0:00:12.3]} 48. Rxa6+ {[%clk 0:00:04.1]} 48... Ke7 {[%clk
0:00:12.8]} 49. Ra7 {[%clk 0:00:04.2]} 49... b4 {[%clk 0:00:12.4]} 50. Rb7
{[%clk 0:00:04.3]} 50... Kd8 {[%clk 0:00:11.1]} 51. Kd3 {[%clk 0:00:03.7]} 51...
Rf1 {[%clk 0:00:07.9]} 52. Rb8+ {[%clk 0:00:03.7]} 52... Kc7 {[%clk 0:00:08]}
53. Rb7+ {[%clk 0:00:04]} 53... Kc8 {[%clk 0:00:08.6]} 54. Kc4 {[%clk
0:00:03.4]} 54... Rf2 {[%clk 0:00:07.9]} 55. Kc5 {[%clk 0:00:03.2]} 55... Bd4+
{[%clk 0:00:07.1]} 56. Kd6 {[%clk 0:00:03.5]} 56... Be8 {[%clk 0:00:03.2]} 57.
Rc7+ {[%clk 0:00:02.5]} 57... Kb8 {[%clk 0:00:03.1]} 58. Rb7+ {[%clk 0:00:02.9]}
58... Kc8 {[%clk 0:00:03.5]} 59. Rc7+ {[%clk 0:00:03.4]} 59... Kd8 {[%clk
0:00:04.1]} 60. Be6 {[%clk 0:00:03.2]} 60... Bc5+ {[%clk 0:00:02]} 61. Rxc5
{[%clk 0:00:03]} 61... Rd2+ {[%clk 0:00:02.8]} 62. Kxe5 {[%clk 0:00:02.7]} 62...
Ke7 {[%clk 0:00:03.7]} 63. Rc7+ {[%clk 0:00:02.7]} 63... Bd7 {[%clk 0:00:03.9]}
64. Bxd7 {[%clk 0:00:02.3]} 64... Rxd7 {[%clk 0:00:04.8]} 65. Rc4 {[%clk
0:00:02.5]} 65... Rb7 {[%clk 0:00:04.2]} 66. Rc2 {[%clk 0:00:03]} 66... b3
{[%clk 0:00:04.7]} 67. Rb2 {[%clk 0:00:03.9]} 67... Rb4 {[%clk 0:00:04.6]} 68.
Kf5 {[%clk 0:00:04.4]} 68... Kd6 {[%clk 0:00:05]} 69. e5+ {[%clk 0:00:03.9]}
69... Kd5 {[%clk 0:00:05.1]} 70. e6 {[%clk 0:00:04.3]} 70... Kd6 {[%clk
0:00:05.4]} 71. Kf6 {[%clk 0:00:03.5]} 71... Rb5 {[%clk 0:00:03.9]} 72. e7
{[%clk 0:00:02.7]} 72... Kd7 {[%clk 0:00:04.3]} 73. Kf7 {[%clk 0:00:02.7]} 73...
Rf5+ {[%clk 0:00:03.7]} 74. Kg6 {[%clk 0:00:03.3]} 74... Rf1 {[%clk 0:00:02.6]}
75. Rxb3 {[%clk 0:00:02.7]} 75... Kxe7 {[%clk 0:00:03.2]} 76. Rb4 {[%clk
0:00:02.9]} 76... Rf2 {[%clk 0:00:03.5]} 77. Rxg4 {[%clk 0:00:03.8]} 77... Rxg2
{[%clk 0:00:03.1]} 78. Kg5 {[%clk 0:00:04.7]} 78... Kf7 {[%clk 0:00:03.4]} 79.
Rf4+ {[%clk 0:00:04.9]} 79... Kg7 {[%clk 0:00:03.9]} 80. g4 {[%clk 0:00:05.8]}
80... Ra2 {[%clk 0:00:04]} 81. Rf5 {[%clk 0:00:05.8]} 81... Ra7 {[%clk
0:00:04.1]} 82. Rb5 {[%clk 0:00:06.1]} 82... Ra6 {[%clk 0:00:04.2]} 83. Rb7+
{[%clk 0:00:04.8]} 83... Kg8 {[%clk 0:00:04.8]} 84. Kh5 {[%clk 0:00:05.6]} 84...
Kf8 {[%clk 0:00:04.8]} 85. g5 {[%clk 0:00:05.6]} 85... Kg8 {[%clk 0:00:05.1]}
86. Rb5 {[%clk 0:00:04.6]} 86... Kg7 {[%clk 0:00:04.7]} 87. Rb7+ {[%clk
0:00:04.3]} 87... Kg8 {[%clk 0:00:04.8]} 88. Rb5 {[%clk 0:00:04.4]} 88... Kg7
{[%clk 0:00:04.6]} 89. Kg4 {[%clk 0:00:05.3]} 89... Kg8 {[%clk 0:00:04.7]} 90.
Kf5 {[%clk 0:00:05.8]} 90... Kg7 {[%clk 0:00:05.1]} 91. Rc5 {[%clk 0:00:05.3]}
91... Kg8 {[%clk 0:00:05.3]} 92. g6 {[%clk 0:00:05.6]} 92... Ra1 {[%clk
0:00:03.9]} 93. Rc8+ {[%clk 0:00:05.5]} 93... Kg7 {[%clk 0:00:04]} 94. Rc7+
{[%clk 0:00:05.4]} 94... Kg8 {[%clk 0:00:04.4]} 95. Rc8+ {[%clk 0:00:04.9]}
95... Kg7 {[%clk 0:00:04.8]} 96. Rc7+ {[%clk 0:00:05.3]} 96... Kg8 {[%clk
0:00:04.8]} 97. Rc8+ {[%clk 0:00:06.2]} 1/2-1/2

[Event "*** SCC Grand Prix: Titled Tuesday Blitz"]
[Site "Chess.com"]
[Date "2020.06.02"]
[Round "9"]
[White "gmcorrales"]
[Black "vaishali2001"]
[Result "1/2-1/2"]
[WhiteElo "2773"]
[BlackElo "2633"]
[TimeControl "180+1"]
[EndTime "11:50:26 PDT"]
[Termination "Game drawn by 50-move rule"]

1. e4 {[%clk 0:03:00.9]} 1... e5 {[%clk 0:02:55]} 2. Nf3 {[%clk 0:03:00.5]} 2...
Nc6 {[%clk 0:02:55.5]} 3. d4 {[%clk 0:03:01.1]} 3... exd4 {[%clk 0:02:55.3]} 4.
Nxd4 {[%clk 0:03:02]} 4... Nf6 {[%clk 0:02:55.6]} 5. Nxc6 {[%clk 0:03:01.7]}
5... bxc6 {[%clk 0:02:55.9]} 6. e5 {[%clk 0:03:02.2]} 6... Qe7 {[%clk
0:02:56.4]} 7. Qe2 {[%clk 0:03:02.9]} 7... Nd5 {[%clk 0:02:55.1]} 8. Nd2 {[%clk
0:03:03.3]} 8... g6 {[%clk 0:02:54.7]} 9. c4 {[%clk 0:03:03.6]} 9... Ba6 {[%clk
0:02:54]} 10. b3 {[%clk 0:02:57.3]} 10... Bg7 {[%clk 0:02:49.6]} 11. Bb2 {[%clk
0:02:57.2]} 11... O-O {[%clk 0:02:44.7]} 12. Nf3 {[%clk 0:02:57.2]} 12... d6
{[%clk 0:02:23.1]} 13. O-O-O {[%clk 0:02:51.2]} 13... dxe5 {[%clk 0:02:20]} 14.
Bxe5 {[%clk 0:02:43.8]} 14... Rfe8 {[%clk 0:01:49.3]} 15. Bxg7 {[%clk
0:02:26.4]} 15... Qxe2 {[%clk 0:01:39.7]} 16. Bxe2 {[%clk 0:02:27.3]} 16... Kxg7
{[%clk 0:01:20.7]} 17. Rhe1 {[%clk 0:02:20.8]} 17... Nc3 {[%clk 0:01:12.1]} 18.
Rd2 {[%clk 0:02:20.5]} 18... c5 {[%clk 0:01:01.7]} 19. Bd3 {[%clk 0:02:07.9]}
19... Bb7 {[%clk 0:00:55.4]} 20. Kb2 {[%clk 0:01:55]} 20... Rxe1 {[%clk
0:00:33.7]} 21. Nxe1 {[%clk 0:01:55.9]} 21... Re8 {[%clk 0:00:33.4]} 22. Nc2
{[%clk 0:01:44.8]} 22... Ne4 {[%clk 0:00:25.7]} 23. Bxe4 {[%clk 0:01:41.3]}
23... Bxe4 {[%clk 0:00:22.9]} 24. Ne3 {[%clk 0:01:41.7]} 24... Bc6 {[%clk
0:00:21.8]} 25. g3 {[%clk 0:01:41.5]} 25... f5 {[%clk 0:00:19.1]} 26. Kc3 {[%clk
0:01:33.2]} 26... Re4 {[%clk 0:00:19.4]} 27. Nd1 {[%clk 0:01:25.7]} 27... f4
{[%clk 0:00:18.7]} 28. Nb2 {[%clk 0:01:24.5]} 28... fxg3 {[%clk 0:00:12.5]} 29.
hxg3 {[%clk 0:01:24.7]} 29... Re5 {[%clk 0:00:12.6]} 30. Nd3 {[%clk 0:01:24.8]}
30... Rf5 {[%clk 0:00:13.1]} 31. f4 {[%clk 0:01:22.1]} 31... g5 {[%clk
0:00:13.4]} 32. Ne5 {[%clk 0:01:22]} 32... Be8 {[%clk 0:00:13.2]} 33. Rd8 {[%clk
0:01:13.9]} 33... gxf4 {[%clk 0:00:12.9]} 34. gxf4 {[%clk 0:00:58.7]} 34... Bg6
{[%clk 0:00:12.9]} 35. Rd7+ {[%clk 0:00:46.4]} 35... Kf6 {[%clk 0:00:11]} 36.
Rxc7 {[%clk 0:00:42.3]} 36... Rxf4 {[%clk 0:00:11.3]} 37. Rxc5 {[%clk
0:00:39.6]} 37... Be4 {[%clk 0:00:08.7]} 38. Nd7+ {[%clk 0:00:31.1]} 38... Ke6
{[%clk 0:00:07.6]} 39. Rc7 {[%clk 0:00:31]} 39... Kd6 {[%clk 0:00:07.4]} 40.
Rxa7 {[%clk 0:00:29.1]} 40... Rf7 {[%clk 0:00:07.6]} 41. c5+ {[%clk 0:00:29.3]}
41... Ke6 {[%clk 0:00:04.7]} 42. c6 {[%clk 0:00:21.7]} 42... Bxc6 {[%clk
0:00:04.2]} 43. Nc5+ {[%clk 0:00:22]} 43... Kf6 {[%clk 0:00:02.9]} 44. Ra6
{[%clk 0:00:22]} 44... Rc7 {[%clk 0:00:02.5]} 45. b4 {[%clk 0:00:21.8]} 45...
Ke5 {[%clk 0:00:03.1]} 46. a4 {[%clk 0:00:22]} 46... Bd5 {[%clk 0:00:03.2]} 47.
Rh6 {[%clk 0:00:21]} 47... Rf7 {[%clk 0:00:02.7]} 48. Rh5+ {[%clk 0:00:20.5]}
48... Kd6 {[%clk 0:00:02.9]} 49. Nd3 {[%clk 0:00:17.3]} 49... Rc7+ {[%clk
0:00:02]} 50. Kd2 {[%clk 0:00:16.7]} 50... Rc4 {[%clk 0:00:01.8]} 51. Rh6+
{[%clk 0:00:17.2]} 51... Be6 {[%clk 0:00:01.4]} 52. Nc5 {[%clk 0:00:17.4]} 52...
Rxb4 {[%clk 0:00:01.1]} 53. Nxe6 {[%clk 0:00:14.1]} 53... Rxa4 {[%clk
0:00:01.3]} 54. Ke3 {[%clk 0:00:13]} 54... Ke5 {[%clk 0:00:02.2]} 55. Nc5 {[%clk
0:00:12.5]} 55... Ra3+ {[%clk 0:00:03.1]} 56. Nd3+ {[%clk 0:00:13.4]} 56... Kf5
{[%clk 0:00:02.6]} 57. Rxh7 {[%clk 0:00:13.2]} 57... Ra4 {[%clk 0:00:03.5]} 58.
Rh5+ {[%clk 0:00:12.9]} 58... Kg6 {[%clk 0:00:03.5]} 59. Rb5 {[%clk 0:00:13.8]}
59... Kf6 {[%clk 0:00:03.8]} 60. Nf4 {[%clk 0:00:14.1]} 60... Kf7 {[%clk
0:00:03.6]} 61. Kf3 {[%clk 0:00:14.3]} 61... Kf6 {[%clk 0:00:03.5]} 62. Kg4
{[%clk 0:00:14.7]} 62... Rc4 {[%clk 0:00:04.1]} 63. Rb6+ {[%clk 0:00:14.4]}
63... Ke5 {[%clk 0:00:04.5]} 64. Kg5 {[%clk 0:00:14]} 64... Ke4 {[%clk
0:00:03.6]} 65. Re6+ {[%clk 0:00:13.4]} 65... Kf3 {[%clk 0:00:03.5]} 66. Nh5
{[%clk 0:00:12.3]} 66... Rc5+ {[%clk 0:00:03.8]} 67. Kh4 {[%clk 0:00:12.6]}
67... Rc4+ {[%clk 0:00:04.1]} 68. Kh3 {[%clk 0:00:13]} 68... Rc1 {[%clk
0:00:04.6]} 69. Ng3 {[%clk 0:00:11.1]} 69... Rc2 {[%clk 0:00:04.1]} 70. Rf6+
{[%clk 0:00:11.2]} 70... Ke3 {[%clk 0:00:04.6]} 71. Rf8 {[%clk 0:00:09]} 71...
Kd2 {[%clk 0:00:05.5]} 72. Re8 {[%clk 0:00:07.7]} 72... Kc1 {[%clk 0:00:06.4]}
73. Kg4 {[%clk 0:00:07.9]} 73... Rc3 {[%clk 0:00:06.8]} 74. Kf4 {[%clk
0:00:07.5]} 74... Kc2 {[%clk 0:00:07.2]} 75. Ne4 {[%clk 0:00:07.9]} 75... Rc4
{[%clk 0:00:07.4]} 76. Rh8 {[%clk 0:00:07.6]} 76... Kd3 {[%clk 0:00:07.5]} 77.
Rd8+ {[%clk 0:00:07.6]} 77... Ke2 {[%clk 0:00:07.6]} 78. Rd2+ {[%clk 0:00:06.9]}
78... Ke1 {[%clk 0:00:07.8]} 79. Ra2 {[%clk 0:00:07.8]} 79... Kd1 {[%clk
0:00:05.9]} 80. Ke3 {[%clk 0:00:07.4]} 80... Kc1 {[%clk 0:00:05.6]} 81. Nf2
{[%clk 0:00:06.9]} 81... Kb1 {[%clk 0:00:05.1]} 82. Re2 {[%clk 0:00:06.5]} 82...
Rc2 {[%clk 0:00:05.1]} 83. Re1+ {[%clk 0:00:06]} 83... Kb2 {[%clk 0:00:05.5]}
84. Nd3+ {[%clk 0:00:04.8]} 84... Kc3 {[%clk 0:00:05.9]} 85. Ra1 {[%clk
0:00:05.4]} 85... Rh2 {[%clk 0:00:05.3]} 86. Ra3+ {[%clk 0:00:05.4]} 86... Kc4
{[%clk 0:00:05.8]} 87. Ra4+ {[%clk 0:00:05.7]} 87... Kb5 {[%clk 0:00:06.2]} 88.
Rg4 {[%clk 0:00:05.8]} 88... Kc6 {[%clk 0:00:05.9]} 89. Kd4 {[%clk 0:00:06.1]}
89... Rh6 {[%clk 0:00:06.2]} 90. Ne5+ {[%clk 0:00:06]} 90... Kb5 {[%clk
0:00:06.6]} 91. Kd5 {[%clk 0:00:06.5]} 91... Rh1 {[%clk 0:00:06.3]} 92. Nf3
{[%clk 0:00:06.2]} 92... Rd1+ {[%clk 0:00:06.5]} 93. Nd4+ {[%clk 0:00:07.1]}
93... Kb4 {[%clk 0:00:07]} 94. Rg3 {[%clk 0:00:07.7]} 94... Rd2 {[%clk
0:00:06.1]} 95. Rb3+ {[%clk 0:00:07.6]} 95... Ka4 {[%clk 0:00:06.3]} 96. Rb8
{[%clk 0:00:08.5]} 96... Ka3 {[%clk 0:00:06.6]} 97. Kc4 {[%clk 0:00:08.9]} 97...
Ka2 {[%clk 0:00:05.4]} 98. Kc3 {[%clk 0:00:09.2]} 98... Rh2 {[%clk 0:00:04.6]}
99. Ra8+ {[%clk 0:00:07.2]} 99... Kb1 {[%clk 0:00:04.9]} 100. Kc4 {[%clk
0:00:04.9]} 100... Rh3 {[%clk 0:00:05]} 101. Nb5 {[%clk 0:00:05.2]} 101... Kc1
{[%clk 0:00:05.1]} 102. Nc3 {[%clk 0:00:04.9]} 102... Rh4+ {[%clk 0:00:04.3]}
103. Kb3 {[%clk 0:00:05.2]} 103... Kd2 {[%clk 0:00:04.4]} 104. Rd8+ {[%clk
0:00:04.8]} 104... Ke3 {[%clk 0:00:04.7]} 105. Kc2 {[%clk 0:00:05.3]} 105...
Rh2+ {[%clk 0:00:04.2]} 106. Kb3 {[%clk 0:00:05.5]} 106... Rh3 {[%clk
0:00:04.7]} 107. Re8+ {[%clk 0:00:05.8]} 1/2-1/2

[Event "*** SCC Grand Prix: Titled Tuesday Blitz"]
[Site "Chess.com"]
[Date "2020.06.02"]
[Round "10"]
[White "Volodar_Murzin"]
[Black "Artem_Sadovsky"]
[Result "0-1"]
[WhiteElo "2692"]
[BlackElo "2555"]
[TimeControl "180+1"]
[EndTime "11:53:12 PDT"]
[Termination "Artem_Sadovsky won by resignation"]

1. e4 {[%clk 0:03:00.9]} 1... g6 {[%clk 0:03:00.9]} 2. Nf3 {[%clk 0:03:00.5]}
2... Bg7 {[%clk 0:03:01.6]} 3. d4 {[%clk 0:03:01.2]} 3... d6 {[%clk 0:03:01.6]}
4. Bc4 {[%clk 0:03:01.7]} 4... e6 {[%clk 0:03:01.3]} 5. Qe2 {[%clk 0:03:01.6]}
5... Ne7 {[%clk 0:03:01.7]} 6. O-O {[%clk 0:02:59.9]} 6... h6 {[%clk 0:03:01.9]}
7. c3 {[%clk 0:02:59.8]} 7... g5 {[%clk 0:03:02.2]} 8. Re1 {[%clk 0:02:56.8]}
8... Ng6 {[%clk 0:03:02.6]} 9. Be3 {[%clk 0:02:53.5]} 9... Nd7 {[%clk
0:02:59.1]} 10. Nbd2 {[%clk 0:02:52.7]} 10... a6 {[%clk 0:02:58.6]} 11. Rad1
{[%clk 0:02:50.9]} 11... g4 {[%clk 0:02:49.3]} 12. d5 {[%clk 0:02:29.2]} 12...
gxf3 {[%clk 0:02:47.9]} 13. Nxf3 {[%clk 0:02:29.4]} 13... e5 {[%clk 0:02:36.9]}
14. b4 {[%clk 0:02:27.6]} 14... Nf6 {[%clk 0:02:27]} 15. Kh1 {[%clk 0:02:21.2]}
15... Nxe4 {[%clk 0:02:15.5]} 0-1

[Event "*** SCC Grand Prix: Titled Tuesday Blitz"]
[Site "Chess.com"]
[Date "2020.06.02"]
[Round "10"]
[White "MateSchmate"]
[Black "abfchess"]
[Result "0-1"]
[WhiteElo "2366"]
[BlackElo "2134"]
[TimeControl "180+1"]
[EndTime "11:54:11 PDT"]
[Termination "abfchess won by checkmate"]

1. e4 {[%clk 0:03:00.9]} 1... e6 {[%clk 0:03:00.1]} 2. d4 {[%clk 0:03:00.6]}
2... d5 {[%clk 0:03:00]} 3. Bd3 {[%clk 0:03:01.3]} 3... c5 {[%clk 0:02:59.1]} 4.
exd5 {[%clk 0:02:59.8]} 4... exd5 {[%clk 0:02:59]} 5. dxc5 {[%clk 0:02:59.5]}
5... Nf6 {[%clk 0:02:59.2]} 6. Nf3 {[%clk 0:03:00.1]} 6... Bxc5 {[%clk
0:02:59.3]} 7. O-O {[%clk 0:02:58.3]} 7... O-O {[%clk 0:02:59.9]} 8. Nbd2 {[%clk
0:02:57.5]} 8... Nc6 {[%clk 0:03:00.2]} 9. Nb3 {[%clk 0:02:56.8]} 9... Bb6
{[%clk 0:02:59.9]} 10. Bg5 {[%clk 0:02:56.7]} 10... Bg4 {[%clk 0:02:59.8]} 11.
Be2 {[%clk 0:02:55.1]} 11... Qd6 {[%clk 0:02:56]} 12. h3 {[%clk 0:02:53.6]}
12... Bh5 {[%clk 0:02:55.5]} 13. c3 {[%clk 0:02:49.6]} 13... Ne4 {[%clk
0:02:55.3]} 14. g4 {[%clk 0:02:42.1]} 14... Bg6 {[%clk 0:02:50.8]} 15. Kg2
{[%clk 0:02:32.2]} 15... Bxf2 {[%clk 0:02:37.8]} 16. Kh1 {[%clk 0:02:11.7]}
16... Qg3 {[%clk 0:02:20.6]} 17. Ng1 {[%clk 0:02:06.4]} 17... Bxg1 {[%clk
0:02:16.6]} 18. Rf3 {[%clk 0:02:06]} 18... Nf2+ {[%clk 0:02:12.4]} 19. Rxf2
{[%clk 0:01:59.3]} 19... Bxf2 {[%clk 0:02:06]} 20. Qd3 {[%clk 0:01:54.7]} 20...
Bxd3 {[%clk 0:02:02.7]} 21. Bf1 {[%clk 0:01:46.7]} 21... Qg1# {[%clk 0:01:59.8]}
0-1